fUST/lending_fUST_20251106
["ID","MTS","AMOUNT","RATE_DAILY","PERIOD"]
[393284216,1762425446872,-1088.734923,0.0003696,11]
[393284217,1762425447063,-1000.0,0.0003698,11]
[393284218,1762425447105,-30000.0,0.00037,60]
[393284219,1762425447144,-10405.78576192,0.00037,60]
[393284221,1762425469340,17558.0,0.00037145,60]
[393284222,1762425483649,-600.0,0.00023765,20]
[393284223,1762425483710,-720.0,0.00026141,30]
[393284224,1762425483769,-864.0,0.00028756,30]
[393284225,1762425483819,-1000.0,0.00031631,30]
[393284226,1762425483871,-1000.0,0.00034794,30]
[393284227,1762425483920,-244.0,0.00034794,30]
[393284228,1762425483968,-1000.0,0.00035555,7]
[393284229,1762425484015,-1000.0,0.00036377,7]
[393284230,1762425484061,-15127.27568492,0.00037,60]
[393284231,1762425484107,-10000.0,0.00037,14]
[393284232,1762425484153,-161.0,0.00037,120]
[393284233,1762425484199,-181.7,0.00037,8]
[393284234,1762425484248,-1966.53,0.00037,30]
[393284235,1762425484294,-2000.0,0.00037,120]
[393284236,1762425484339,-500.0,0.00037,15]
[393284237,1762425484389,-1306.47219331,0.00037,30]
[393284238,1762425484436,-462329.02212177,0.00037,30]
[393284239,1762425489843,-215828.2465995,0.00037,30]
[393284240,1762425489884,-410.78322,0.00037,60]
[393284241,1762425489924,-152.647358,0.00037,60]
[393284242,1762425489964,-250.0,0.00037,14]
[393284243,1762425490005,-250.0,0.00037,14]
[393284244,1762425490044,-250.0,0.00037,14]
[393284245,1762425490081,-250.0,0.00037,14]
[393284246,1762425490120,-250.0,0.00037,14]
[393284247,1762425490161,-250.0,0.00037,14]
[393284248,1762425490208,-250.0,0.00037,14]
[393284249,1762425490253,-250.0,0.00037,14]
[393284250,1762425490298,-177.5,0.00037,14]
[393284251,1762425490342,-2110.8926856,0.00037,30]
[393284252,1762425490392,-1000.0,0.00037,11]
[393284253,1762425490435,-3004.53,0.00037,31]
[393284254,1762425490480,-3004.53,0.00037,31]
[393284255,1762425490524,-3004.53,0.00037,31]
[393284256,1762425490569,-3004.53,0.00037,31]
[393284257,1762425490611,-1000.0,0.0003702,11]
[393284258,1762425490652,-200.0,0.00037033,120]
[393284259,1762425490691,-200.0,0.00037035,120]
[393284260,1762425490728,-1000.0,0.0003704,11]
[393284261,1762425490767,-537.8,0.00037044,60]
[393284262,1762425490804,-1000.0,0.0003706,11]
[393284263,1762425490840,-1000.0,0.0003708,11]
[393284264,1762425490876,-1176.747051,0.0003708,11]
[393284265,1762425490914,-1000.0,0.000371,11]
[393284266,1762425490950,-1000.0,0.000371,11]
[393284267,1762425490986,-1500.0,0.000371,23]
[393284268,1762425491023,-200.0,0.00037128,120]
[393284269,1762425491062,-537.8,0.00037144,60]
[393284270,1762425491102,-4639.44,0.00037145,20]
[393284271,1762425491157,-663.88565951,0.00037161,20]
[393284272,1762425491194,-153.0,0.00037186,14]
[393284273,1762425491233,-1000.0,0.00037199,7]
[393284274,1762425491271,-3643.37,0.00037199,60]
[393284275,1762425491309,-5000.0,0.000372,30]
[393284276,1762425491346,-169.41325414,0.000372,120]
[393284277,1762425491382,-451.90768061,0.000372,120]
[393284278,1762425491567,-817.14752864,0.000372,120]
[393284279,1762425491609,-1902.37474965,0.000372,120]
[393284280,1762425491654,-317.00342808,0.000372,120]
[393284281,1762425491694,-1142.26784411,0.000372,120]
[393284282,1762425491733,-176.77246861,0.000372,120]
[393284283,1762425491772,-221.77575364,0.000372,120]
[393284284,1762425491821,-174.75799927,0.000372,120]
[393284285,1762425491866,-171.66421044,0.000372,120]
[393284286,1762425491908,-176.2550529,0.000372,120]
[393284287,1762425491948,-201.95078225,0.000372,120]
[393284288,1762425491990,-478.93087252,0.000372,120]
[393284289,1762425492032,-10159.53005088,0.000372,120]
[393284290,1762425492073,-200.0,0.00037211,120]
[393284291,1762425492113,-537.8,0.00037244,60]
[393284292,1762425492154,-3004.53,0.00037275,31]
[393284293,1762425492199,-3004.53,0.00037275,31]
[393284294,1762425492249,-3004.53,0.00037275,31]
[393284295,1762425492296,-3004.53,0.00037275,31]
[393284296,1762425492345,-3004.53,0.00037275,31]
[393284297,1762425492396,-3004.53,0.00037275,31]
[393284298,1762425492443,-3004.53,0.00037275,31]
[393284299,1762425492491,-3004.53,0.00037275,31]
[393284300,1762425492544,-3004.53,0.00037275,31]
[393284301,1762425492592,-3004.53,0.00037275,31]
[393284302,1762425492639,-3004.53,0.00037275,31]
[393284303,1762425492680,-3004.53,0.00037275,31]
[393284304,1762425492720,-1000.0,0.00037288,20]
[393284305,1762425492759,-1000.0,0.00037288,20]
[393284306,1762425492800,-1000.0,0.00037288,20]
[393284307,1762425492842,-1000.0,0.00037288,20]
[393284308,1762425492882,-1000.0,0.00037288,20]
[393284309,1762425492922,-1000.0,0.00037288,20]
[393284310,1762425492961,-1000.0,0.00037288,20]
[393284311,1762425493001,-1000.0,0.00037288,20]
[393284312,1762425493041,-1000.0,0.00037288,20]
[393284313,1762425493081,-1000.0,0.00037288,20]
[393284314,1762425493122,-1110.0,0.00037288,20]
[393284315,1762425493164,-1110.0,0.00037288,20]
[393284316,1762425493205,-1110.0,0.00037288,20]
[393284317,1762425493246,-1110.0,0.00037288,20]
[393284318,1762425493285,-1110.0,0.00037288,20]
[393284319,1762425493326,-1110.0,0.00037288,20]
[393284320,1762425493368,-1110.0,0.00037288,20]
[393284321,1762425493411,-1110.0,0.00037288,20]
[393284322,1762425493451,-1110.0,0.00037288,20]
[393284323,1762425493491,-1503.1754524,0.00037289,20]
[393284324,1762425493530,-150.60825365,0.000373,60]
[393284325,1762425493574,-537.8,0.00037344,60]
[393284326,1762425493614,-27080.8498132,0.00037356,30]
[393284327,1762425493653,-3004.53,0.00037356,31]
[393284328,1762425493692,-3004.53,0.00037356,31]
[393284329,1762425493731,-3004.53,0.00037356,31]
[393284330,1762425493770,-3004.53,0.00037356,31]
[393284331,1762425493808,-155.0,0.00037436,30]
[393284332,1762425493844,-154.55,0.00037438,30]
[393284333,1762425493883,-537.8,0.00037444,60]
[393284334,1762425493923,-200.0,0.00037469,120]
[393284335,1762425493962,-5027.0,0.00037493,30]
[393284336,1762425494001,-1000.0,0.00037495,30]
[393284337,1762425494041,-150.0,0.000375,112]
[393284338,1762425494081,-500.0,0.000375,15]
[393284339,1762425494121,-5000.0,0.000375,50]
[393284340,1762425494161,-2673.12,0.000375,14]
[393284341,1762425494200,-2000.0,0.00037504,30]
[393284342,1762425494242,-1013.8,0.00037526,30]
[393284343,1762425494282,-508.0,0.00037526,30]
[393284344,1762425494323,-537.8,0.00037544,60]
[393284345,1762425494363,-10000.0,0.00037588,30]
[393284346,1762425494404,-10000.0,0.00037588,30]
[393284347,1762425494446,-10000.0,0.00037588,30]
[393284348,1762425494488,-10000.0,0.00037588,30]
[393284349,1762425494530,-5000.0,0.00037588,30]
[393284350,1762425494576,-201.0,0.0003759,46]
[393284351,1762425494624,-537.84263371,0.00037644,60]
[393284352,1762425494667,-2072.66,0.00037672,30]
[393284353,1762425494706,-2037.0,0.0003772,30]
[393284354,1762425494747,-200.0,0.0003779,120]
[393284355,1762425494787,-200.0,0.00037792,120]
[393284356,1762425494827,-200.0,0.00037847,120]
[393284357,1762425494868,-1717.54483907,0.000379,120]
[393284358,1762425494910,-1000.0,0.00038,120]
[393284359,1762425494952,-2000.0,0.00038,14]
[393284360,1762425494995,-200.0,0.00038,120]
[393284361,1762425495037,-10000.0,0.00038,10]
[393284362,1762425495075,-500.0,0.00038,15]
[393284363,1762425495112,-1000.0,0.00038021,7]
[393284364,1762425495150,-2673.12,0.000382,14]
[393284365,1762425495189,-200.0,0.00038208,120]
[393284366,1762425495227,-200.0,0.00038261,120]
[393284367,1762425495266,-166.59,0.00038281,60]
[393284368,1762425495304,-2625.94,0.000383,21]
[393284369,1762425495344,-451.90768061,0.000383,120]
[393284370,1762425495392,-817.14752864,0.000383,120]
[393284371,1762425495435,-1902.37474965,0.000383,120]
[393284372,1762425495480,-317.00342808,0.000383,120]
[393284373,1762425495639,-1142.26784411,0.000383,120]
[393284374,1762425495681,-176.77246861,0.000383,120]
[393284375,1762425495722,-221.77575364,0.000383,120]
[393284376,1762425495762,-174.75799927,0.000383,120]
[393284377,1762425495802,-171.66421044,0.000383,120]
[393284378,1762425495840,-176.2550529,0.000383,120]
[393284379,1762425495877,-201.95078225,0.000383,120]
[393284380,1762425495914,-478.93087252,0.000383,120]
[393284381,1762425495954,-10159.53005088,0.000383,120]
[393284382,1762425495993,-200.0,0.0003833,120]
[393284383,1762425496030,-200.0,0.00038348,120]
[393284384,1762425496068,-200.0,0.00038362,120]
[393284385,1762425496106,-166.59,0.00038381,120]
[393284386,1762425496145,-166.59,0.00038481,120]
[393284387,1762425496186,-4676.07,0.000385,14]
[393284388,1762425496229,-200.0,0.00038548,120]
[393284389,1762425496268,-200.0,0.00038581,120]
[393284390,1762425496308,-166.59,0.00038581,120]
[393284391,1762425496346,-419.94,0.0003863,14]
[393284392,1762425496385,-166.59,0.00038681,120]
[393284393,1762425496423,-157.0,0.000387,120]
[393284394,1762425496462,-166.59,0.00038781,120]
[393284395,1762425496501,-200.0,0.00038813,120]
[393284396,1762425496540,-1000.0,0.00038843,7]
[393284397,1762425496583,-166.59,0.00038881,120]
[393284398,1762425496619,-1000.0,0.00038888,15]
[393284399,1762425496655,-200.0,0.00038903,120]
[393284400,1762425496692,-166.59,0.00038981,120]
[393284401,1762425496728,-1000.0,0.00039,120]
[393284402,1762425496764,-430.46724019,0.00039,120]
[393284403,1762425496799,-245.01546816,0.00039,120]
[393284404,1762425496835,-64927.38417902,0.00039,10]
[393284405,1762425496871,-1522.13987655,0.00039,14]
[393284406,1762425496907,-500.0,0.00039,30]
[393284407,1762425496945,-166.59,0.00039081,120]
[393284408,1762425496983,-200.0,0.000391,120]
[393284409,1762425497023,-166.59,0.00039181,120]
[393284410,1762425497060,-200.0,0.00039212,120]
[393284411,1762425497100,-166.59,0.00039281,120]
[393284412,1762425497139,-954.57796588,0.0003933,7]
[393284413,1762425497179,-166.59,0.00039381,120]
[393284414,1762425497217,-166.59,0.00039481,120]
[393284415,1762425497253,-451.90768061,0.000395,120]
[393284416,1762425497292,-817.14752864,0.000395,120]
[393284417,1762425497331,-1902.37474965,0.000395,120]
[393284418,1762425497371,-317.00342808,0.000395,120]
[393284419,1762425497410,-1142.26784411,0.000395,120]
[393284420,1762425497453,-176.77246861,0.000395,120]
[393284421,1762425497499,-221.77575364,0.000395,120]
[393284422,1762425497546,-171.66421044,0.000395,120]
[393284423,1762425497592,-176.2550529,0.000395,120]
[393284424,1762425497633,-201.95078225,0.000395,120]
[393284425,1762425497674,-478.93087252,0.000395,120]
[393284426,1762425497724,-10159.53005088,0.000395,120]
[393284427,1762425497771,-166.59,0.00039581,120]
[393284428,1762425497812,-1000.0,0.00039665,7]
[393284429,1762425497851,-166.59,0.00039681,120]
[393284430,1762425497888,-166.59,0.00039781,120]
[393284431,1762425497925,-166.59,0.00039881,120]
[393284432,1762425497963,-201.0,0.0003998,53]
[393284433,1762425498002,-166.59,0.00039981,120]
[393284434,1762425498041,-464.60845126,0.00039999,31]
[393284435,1762425498078,-399.75987795,0.00039999,31]
[393284436,1762425498115,-5000.0,0.0004,30]
[393284437,1762425498153,-1000.0,0.0004,120]
[393284438,1762425498191,-275.88128964,0.0004,10]
[393284439,1762425498228,-300.0,0.0004,120]
[393284440,1762425498267,-2193.92524796,0.0004,30]
[393284441,1762425498308,-500.0,0.0004,10]
[393284442,1762425498347,-1000.0,0.0004,30]
[393284443,1762425498386,-10000.0,0.0004,15]
[393284444,1762425498423,-500.0,0.0004,30]
[393284445,1762425498460,-322.1527355,0.0004,120]
[393284446,1762425498503,-419.94,0.0004,16]
[393284447,1762425498549,-166.59,0.00040081,120]
[393284448,1762425498592,-166.59,0.00040181,120]
[393284449,1762425498631,-166.59,0.00040281,120]
[393284450,1762425498667,-166.59,0.00040381,120]
[393284451,1762425498704,-166.59,0.00040481,120]
[393284452,1762425498742,-157.0,0.000405,120]
[393284453,1762425498781,-4676.07,0.000405,14]
[393284454,1762425498819,-166.59,0.00040581,120]
[393284455,1762425498855,-451.90768061,0.000406,120]
[393284456,1762425498893,-817.14752864,0.000406,120]
[393284457,1762425498931,-1902.37474965,0.000406,120]
[393284458,1762425498970,-317.00342808,0.000406,120]
[393284459,1762425499008,-1142.26784411,0.000406,120]
[393284460,1762425499048,-176.77246861,0.000406,120]
[393284461,1762425499084,-221.77575364,0.000406,120]
[393284462,1762425499122,-176.2550529,0.000406,120]
[393284463,1762425499161,-171.66421044,0.000406,120]
[393284464,1762425499200,-201.95078225,0.000406,120]
[393284465,1762425499239,-478.93087252,0.000406,120]
[393284466,1762425499280,-10159.53005088,0.000406,120]
[393284467,1762425499325,-166.59,0.00040681,120]
[393284468,1762425499482,-166.59,0.00040781,120]
[393284469,1762425499531,-1142.06,0.00040881,10]
[393284470,1762425499581,-166.59,0.00040881,120]
[393284471,1762425499624,-500.02997978,0.00040925,28]
[393284472,1762425499664,-166.59,0.00040981,120]
[393284473,1762425499702,-304.23221273,0.00040999,120]
[393284474,1762425499739,-267.8434,0.00041,120]
[393284475,1762425499776,-1041.88665667,0.00041,120]
[393284476,1762425499813,-166.59,0.00041081,120]
[393284477,1762425499848,-50000.0,0.00041096,120]
[393284478,1762425499884,-573.37,0.00041096,120]
[393284479,1762425499994,500.0,0.00037145,60]
[393284480,1762425500052,548.61032,0.00037145,60]
[393284481,1762425500105,600.0,0.00023765,20]
[393284482,1762425500174,720.0,0.00026141,30]
[393284483,1762425500274,864.0,0.00028756,30]
[393284484,1762425500337,1000.0,0.00031631,30]
[393284485,1762425500407,1000.0,0.00034794,30]
[393284486,1762425500456,244.0,0.00034794,30]
[393284487,1762425500586,1000.0,0.00038274,30]
[393284488,1762425500644,492.0,0.00038274,30]
[393284490,1762425606487,201.4373095,0.00037275,120]
[393284491,1762425607802,160.0,0.00037275,20]
[393284492,1762425608976,168.1475897,0.00037275,60]
[393284493,1762425611752,268.60644407,0.00037275,60]
[393284494,1762425614512,202.82868025,0.00037275,60]
[393284495,1762425615296,289.91027448,0.00037275,60]
[393284496,1762425625722,237.00324105,0.00037275,60]
[393284497,1762425627029,237.05969022,0.00037275,60]
[393284498,1762425636549,312.96847783,0.00037275,60]
[393284499,1762425648481,273.11079145,0.00037275,60]
[393284500,1762425650361,291.62073236,0.00037275,60]
[393284501,1762425652197,636.57922935,0.00037275,60]
[393284502,1762425655338,204.77037976,0.00037275,60]
[393284503,1762425657160,275.66088868,0.00030136,120]
[393284504,1762425657683,500.0,0.00037275,60]
[393284505,1762425657910,403.58842139,0.00037275,60]
[393284506,1762425661009,150.07055278,0.00037275,60]
[393284507,1762425664007,262.51023132,0.00037275,120]
[393284527,1762425667155,161.0,0.00037275,20]
[393284572,1762425669718,240.47177496,0.00037275,60]
[393284574,1762425669762,445.9345089,0.00037275,60]
[393284603,1762425671460,227.98593876,0.00037275,60]
[393284638,1762425674211,500.0,0.00037275,60]
[393284639,1762425680812,200.0,0.00037275,30]
[393284640,1762425681150,160.47821736,0.00037275,60]
[393284641,1762425682239,354.40197563,0.00037275,60]
[393284642,1762425690877,500.0,0.00037275,60]
[393284643,1762425691111,500.0,0.00037275,60]
[393284644,1762425691364,500.0,0.00037275,60]
[393284645,1762425691610,500.0,0.00037275,60]
[393284646,1762425691848,500.0,0.00037275,60]
[393284647,1762425692087,500.0,0.00037275,60]
[393284648,1762425692347,500.0,0.00037275,60]
[393284649,1762425692626,500.0,0.00037275,60]
[393284650,1762425692873,500.0,0.00037275,60]
[393284651,1762425693118,500.0,0.00037275,60]
[393284652,1762425693359,500.0,0.00037275,60]
[393284653,1762425693632,500.0,0.00037275,60]
[393284654,1762425693875,500.0,0.00037275,60]
[393284655,1762425694181,500.0,0.00037275,60]
[393284656,1762425694421,500.0,0.00037275,60]
[393284657,1762425694671,500.0,0.00037275,120]
[393284658,1762425694910,500.0,0.00037275,120]
[393284659,1762425695206,500.0,0.00037275,120]
[393284660,1762425695421,500.0,0.00037275,120]
[393284661,1762425695661,500.0,0.00037275,120]
[393284662,1762425695925,500.0,0.00037275,120]
[393284663,1762425696167,174.2102296,0.00037275,120]
[393284664,1762425696347,317.43591629,0.00037275,60]
[393284665,1762425698185,423.76194438,0.00037275,60]
[393284666,1762425699364,500.0,0.00037275,60]
[393284667,1762425699595,500.0,0.00037275,60]
[393284668,1762425699819,500.0,0.00037275,60]
[393284669,1762425700050,411.5287442,0.00037275,60]
[393284670,1762425700090,500.0,0.00037275,60]
[393284671,1762425700325,500.0,0.00037275,60]
[393284672,1762425700558,500.0,0.00037275,60]
[393284673,1762425700847,502.55586555,0.00037275,60]
[393284674,1762425704383,374.08468491,0.00037275,60]
[393284675,1762425705056,235.16097292,0.00037275,60]
[393284676,1762425710176,223.91624429,0.00037275,60]
[393284677,1762425717963,267.89208125,0.00037275,30]
[393284678,1762425725176,500.0,0.00037275,60]
[393284679,1762425725404,165.21039195,0.00037275,60]
[393284680,1762425728301,500.0,0.00037275,60]
[393284681,1762425728546,500.0,0.00037275,60]
[393284684,1762425774472,500.0,0.00037275,60]
[393284685,1762425774656,500.0,0.00037275,60]
[393284686,1762425774902,500.0,0.00037275,60]
[393284687,1762425775161,500.0,0.00037275,60]
[393284701,1762425794805,152.22706819,0.00037275,60]
[393284703,1762425802160,500.0,0.00037275,60]
[393284704,1762425802400,500.0,0.00037275,60]
[393284705,1762425803115,500.0,0.00037275,60]
[393284706,1762425803382,500.0,0.00037275,60]
[393284707,1762425803648,500.0,0.00037275,60]
[393284708,1762425803938,500.0,0.00037275,60]
[393284709,1762425804210,500.0,0.00037275,60]
[393284710,1762425804464,500.0,0.00037275,60]
[393284711,1762425804703,500.0,0.00037275,60]
[393284712,1762425804963,500.0,0.00037275,60]
[393284713,1762425805214,500.0,0.00037275,60]
[393284714,1762425805477,500.0,0.00037275,60]
[393284715,1762425805720,500.0,0.00037275,60]
[393284716,1762425805981,500.0,0.00037275,60]
[393284717,1762425806222,500.0,0.00037275,60]
[393284718,1762425806487,500.0,0.00037275,120]
[393284719,1762425806733,459.91318926,0.00037275,120]
[393284720,1762425820737,500.0,0.00037275,60]
[393284721,1762425820981,500.0,0.00037275,60]
[393284722,1762425821218,500.0,0.00037275,60]
[393284723,1762425821487,500.0,0.00037275,60]
[393284724,1762425821740,500.0,0.00037275,60]
[393284725,1762425822003,500.0,0.00037275,60]
[393284726,1762425822397,500.0,0.00037275,60]
[393284727,1762425822661,500.0,0.00037275,60]
[393284728,1762425822906,500.0,0.00037275,60]
[393284729,1762425823193,500.0,0.00037275,60]
[393284730,1762425823929,500.0,0.00037275,60]
[393284731,1762425824169,500.0,0.00037275,60]
[393284732,1762425824407,500.0,0.00037275,60]
[393284733,1762425824662,500.0,0.00037275,60]
[393284734,1762425824899,500.0,0.00037275,60]
[393284735,1762425825180,500.0,0.00037275,120]
[393284736,1762425825397,500.0,0.00037275,120]
[393284737,1762425825634,500.0,0.00037275,120]
[393284738,1762425825918,500.0,0.00037275,120]
[393284739,1762425826180,500.0,0.00037275,120]
[393284740,1762425826421,500.0,0.00037275,120]
[393284741,1762425826667,500.0,0.00037275,120]
[393284742,1762425827310,275.53171319,0.00037275,120]
[393284743,1762425831801,500.0,0.00037275,60]
[393284744,1762425832055,500.0,0.00037275,60]
[393284745,1762425832302,500.0,0.00037275,60]
[393284746,1762425835850,500.0,0.00037275,60]
[393284747,1762425836225,500.0,0.00037275,60]
[393284748,1762425836327,500.0,0.00037275,60]
[393284749,1762425836579,500.0,0.00037275,60]
[393284750,1762425836821,500.0,0.00037275,60]
[393284751,1762425837088,500.0,0.00037275,60]
[393284752,1762425837499,500.0,0.00037275,60]
[393284753,1762425837758,500.0,0.00037275,60]
[393284754,1762425838028,500.0,0.00037275,60]
[393284755,1762425838271,500.0,0.00037275,60]
[393284756,1762425838521,471.03942278,0.00037275,60]
[393284757,1762425841885,500.0,0.00037275,60]
[393284758,1762425842245,500.0,0.00037275,60]
[393284759,1762425842517,500.0,0.00037275,60]
[393284760,1762425842761,500.0,0.00037275,60]
[393284761,1762425843001,500.0,0.00037275,60]
[393284762,1762425843231,500.0,0.00037275,60]
[393284763,1762425843464,500.0,0.00037275,60]
[393284764,1762425843714,500.0,0.00037275,60]
[393284765,1762425843999,500.0,0.00037275,60]
[393284766,1762425844258,500.0,0.00037275,60]
[393284767,1762425849204,500.0,0.00037266,60]
[393284768,1762425849518,500.0,0.00037266,60]
[393284769,1762425849760,500.0,0.00037266,60]
[393284770,1762425849994,500.0,0.00037266,60]
[393284771,1762425850247,500.0,0.00037266,60]
[393284772,1762425850492,500.0,0.00037266,60]
[393284773,1762425850736,500.0,0.00037266,60]
[393284774,1762425850814,500.0,0.00037266,60]
[393284775,1762425850988,500.0,0.00037266,60]
[393284776,1762425851047,500.0,0.00037266,60]
[393284777,1762425851238,500.0,0.00037266,60]
[393284778,1762425851299,500.0,0.00037266,60]
[393284779,1762425851502,500.0,0.00037266,60]
[393284780,1762425851549,500.0,0.00037266,60]
[393284781,1762425851788,500.0,0.00037266,60]
[393284782,1762425851829,500.0,0.00037266,60]
[393284783,1762425852023,500.0,0.00037266,60]
[393284784,1762425852282,500.0,0.00037266,60]
[393284785,1762425852849,500.0,0.00037266,60]
[393284786,1762425855782,526.85,0.00037266,21]
[393284787,1762425856045,526.85,0.00037266,21]
[393284788,1762425856328,526.85,0.00037266,21]
[393284789,1762425856634,526.85,0.00037266,21]
[393284790,1762425856878,526.85,0.00037266,21]
[393284791,1762425857131,526.85,0.00037266,21]
[393284792,1762425857389,526.85,0.00037266,21]
[393284793,1762425857645,526.85,0.00037266,21]
[393284794,1762425857910,526.85,0.00037266,21]
[393284795,1762425858152,526.85,0.00037266,21]
[393284796,1762425858408,526.85,0.00037266,21]
[393284797,1762425858663,526.85,0.00037266,21]
[393284798,1762425858900,526.85,0.00037266,21]
[393284799,1762425859148,526.85,0.00037266,21]
[393284800,1762425859380,526.85,0.00037266,21]
[393284801,1762425860131,526.85,0.00037266,21]
[393284802,1762425860362,526.85,0.00037266,21]
[393284803,1762425860805,526.85,0.00037266,21]
[393284804,1762425861071,526.85,0.00037266,21]
[393284805,1762425861303,526.85,0.00037266,21]
[393284806,1762425861542,526.85,0.00037266,21]
[393284807,1762425861788,526.85,0.00037266,21]
[393284808,1762425862033,526.85,0.00037266,21]
[393284809,1762425862273,527.07843482,0.00037266,21]
[393284810,1762425864144,500.0,0.00037266,60]
[393284811,1762425864577,500.0,0.00037266,60]
[393284812,1762425864842,500.0,0.00037266,60]
[393284813,1762425865101,500.0,0.00037266,60]
[393284814,1762425865371,500.0,0.00037266,60]
[393284815,1762425865604,500.0,0.00037266,60]
[393284816,1762425865864,500.0,0.00037266,60]
[393284817,1762425866109,500.0,0.00037266,60]
[393284818,1762425866148,500.0,0.00037266,60]
[393284819,1762425866493,500.0,0.00037266,60]
[393284820,1762425866588,500.0,0.00037266,60]
[393284821,1762425866629,500.0,0.00037266,60]
[393284822,1762425866709,458.21,0.00037266,60]
[393284823,1762425868028,500.0,0.00037266,60]
[393284824,1762425868420,500.0,0.00037266,60]
[393284825,1762425868659,500.0,0.00037266,60]
[393284826,1762425868903,500.0,0.00037266,60]
[393284827,1762425880122,500.0,0.00037266,60]
[393284828,1762425880378,500.0,0.00037266,60]
[393284829,1762425880610,500.0,0.00037266,60]
[393284830,1762425880843,500.0,0.00037266,60]
[393284831,1762425881088,500.0,0.00037266,60]
[393284832,1762425881368,500.0,0.00037266,60]
[393284833,1762425881604,500.0,0.00037266,60]
[393284834,1762425881882,500.0,0.00037266,60]
[393284835,1762425882132,500.0,0.00037266,60]
[393284836,1762425882401,500.0,0.00037266,60]
[393284837,1762425882652,500.0,0.00037266,60]
[393284838,1762425883140,500.0,0.00037266,60]
[393284839,1762425892412,500.0,0.00037266,60]
[393284840,1762425892757,500.0,0.00037266,60]
[393284841,1762425893019,500.0,0.00037266,60]
[393284842,1762425893284,500.0,0.00037266,60]
[393284843,1762425893886,500.0,0.00037266,60]
[393284844,1762425894163,500.0,0.00037266,60]
[393284845,1762425894411,500.0,0.00037266,60]
[393284846,1762425894662,500.0,0.00037266,60]
[393284847,1762425896812,500.0,0.00037266,60]
[393284848,1762425897293,500.0,0.00037266,60]
[393284849,1762425897527,500.0,0.00037266,60]
[393284850,1762425897757,500.0,0.00037266,60]
[393284851,1762425897995,500.0,0.00037266,60]
[393284852,1762425898238,500.0,0.00037266,60]
[393284853,1762425898475,500.0,0.00037266,60]
[393284854,1762425898706,500.0,0.00037266,60]
[393284855,1762425904181,326.99,0.00037266,20]
[393284856,1762425905009,500.0,0.00037266,60]
[393284857,1762425905282,431.737681,0.00037266,60]
[393284860,1762425909429,151.0,0.00037266,120]
[393284861,1762425909932,282.43382367,0.00037266,120]